{"text_format":"3","workbook":"xlsx","n_sheets":2,"sheets":["Kezdés","Ügyfelek nyereségessége"],"not_rendered":{"charts":1},"read":"whole","date_system":"1900"}

{"sheet":"Kezdés","index":0,"n_rows":7,"n_cols":2,"rows_kept":7}
[null,"A SABLON ISMERTETÉSE"]
[null,"Ezzel az ügyfelek nyereségességének elemzésé használható sablonnal nyomon követheti az Ügyféltevékenységek, Értékesítés költsége és Egyéb költségek."]
[null,"A táblázatokban megadhatja a kívánt információkat, például a cégnevet, a dátum és más részleteket."]
[null,"A képleteket tartalmazó cellákban és az Összegző metrikák táblázatban található értékeket a sablon automatikusan kiszámítja, és frissíti a diagramot."]
[null,"Megjegyzés:  "]
[null,"Az ÜGYFÉLEK NYERESÉGESSÉGE munkalap A oszlopában további útmutatást olvashat. Ez a szöveg szándékosan van elrejtve. Ha törölni szeretné a szöveget, jelölje ki az A oszlopot, majd nyomja le a DELETE billentyűt. Ha láthatóvá szeretné tenni a szöveget, jelölje ki az A oszlopot, majd módosítsa a betűszínt."]
[null,"Ha többet szeretne megtudni a munkalapon lévő táblázatokról, nyomja le a SHIFT+F10 billentyűkombinációt egy táblázaton belül, válassza a TÁBLÁZAT parancsot, majd a HELYETTESÍTŐ SZÖVEG elemet."]

{"sheet":"Ügyfelek nyereségessége","index":1,"n_rows":37,"n_cols":6,"rows_kept":37,"merged":[[36,1,36,5]]}
["Ezen a munkalapon létrehozhat egy, az ügyfelek nyereségességének elemzése. Ennek az oszlopnak a celláiban a munkalap használatát megkönnyítő útmutatás olvasható. Első lépésként nyomja le a Le nyílbillentyűt."]
["A jobbra lévő cellában adhatja meg a cég neve.","Cég neve"]
["A jobbra lévő cellában szerepel a munkalap címe.","Ügyfelek nyereségességének elemzése"]
["A jobbra lévő cellában adhatja meg a dátum.","Dátum"]
["A jobbra lévő cellában egy tipp szerepel.","A szürke cellákat a sablon kiszámítja Ön helyett. Ezekbe nem kell írnia semmit."]
["A jobbra lévő cellában kezdődő Ügyféltevékenységek táblázatban adhatja meg az adatokat. A következő utasítás az A12 cellában található.","Ügyféltevékenységek:","Szegmensnév 1","Szegmensnév 2","Szegmensnév 3","Összesen"]
[null,"Aktív ügyfelek száma – Időszak kezdete",5,8,8,{"$f":"SUM(C7:E7)","v":21}]
[null,"Hozzáadott ügyfelek száma",2,4,4,{"$f":"SUM(C8:E8)","v":10}]
[null,"Elveszített/megszűnt ügyfelek száma",{"v":-1,"d":"-1 "},{"v":-2,"d":"-2 "},{"v":-2,"d":"-2 "},{"$f":"SUM(C9:E9)","v":{"v":-5,"d":"-5 "}}]
[null,"Aktív ügyfelek száma – Időszak vége",{"$f":"SUBTOTAL(109,Ügyféltevékenységek[Szegmensnév 1])","v":6},{"$f":"SUBTOTAL(109,Ügyféltevékenységek[Szegmensnév 2])","v":10},{"$f":"SUBTOTAL(109,Ügyféltevékenységek[Szegmensnév 3])","v":10},{"$f":"SUBTOTAL(109,Ügyféltevékenységek[Összesen])","v":26}]
[]
["A jobbra kezdődő Nyereségesség elemzése táblázatban adhatja meg az adatokat. A következő utasítás az A16 cellában található.","Nyereségesség elemzése:","Szegmensnév 1","Szegmensnév 2","Szegmensnév 3","Összesen"]
[null,"Árbevétel szegmensenként",{"v":1500000,"d":"1,500,000.00 Ft"},{"v":1800000,"d":"1,800,000.00 Ft"},{"v":2500000,"d":"2,500,000.00 Ft"},{"$f":"SUM(NyereségességElemzése[[#This Row],[Szegmensnév 1]:[Szegmensnév 3]])","v":{"v":5800000,"d":"5,800,000.00 Ft"}}]
[null,"Súlyozás",{"$f":"+C13/$F$13","v":{"v":0.25862068965517243,"d":"26%"}},{"$f":"+D13/$F$13","v":{"v":0.3103448275862069,"d":"31%"}},{"$f":"+E13/$F$13","v":{"v":0.43103448275862066,"d":"43%"}},{"$f":"SUM(NyereségességElemzése[[#This Row],[Szegmensnév 1]:[Szegmensnév 3]])","v":{"v":1,"d":"100%"}}]
[]
["A jobbra lévő cellában kezdődő Értékesítés költsége táblázatban adhatja meg az adatokat. A következő utasítás az A23 cellában található.","Értékesítés költsége:","Szegmensnév 1","Szegmensnév 2","Szegmensnév 3","Összesen"]
[null,"Folyamatos szolgáltatási és támogatási költségek",{"v":1000000,"d":"1,000,000.00 Ft"},{"v":1400000,"d":"1,400,000.00 Ft"},{"v":1400000,"d":"1,400,000.00 Ft"},{"$f":"SUM(C17:E17)","v":{"v":3800000,"d":"3,800,000.00 Ft"}}]
[null,"Egyéb közvetlen ügyfélköltségek",{"v":200000,"d":"200,000.00 Ft"},{"v":100000,"d":"100,000.00 Ft"},{"v":100000,"d":"100,000.00 Ft"},{"$f":"SUM(C18:E18)","v":{"v":400000,"d":"400,000.00 Ft"}}]
[null,"Értékesítés teljes költsége",{"$f":"SUM(C17:C18)","v":{"v":1200000,"d":"1,200,000.00 Ft"}},{"$f":"SUM(D17:D18)","v":{"v":1500000,"d":"1,500,000.00 Ft"}},{"$f":"SUM(E17:E18)","v":{"v":1500000,"d":"1,500,000.00 Ft"}},{"$f":"SUM(F17:F18)","v":{"v":4200000,"d":"4,200,000.00 Ft"}}]
[null,"Bruttó nyereség",{"$f":"+C13-C19","v":{"v":300000,"d":"300,000.00 Ft"}},{"$f":"+D13-D19","v":{"v":300000,"d":"300,000.00 Ft"}},{"$f":"+E13-E19","v":{"v":1000000,"d":"1,000,000.00 Ft"}},{"$f":"+F13-F19","v":{"v":1600000,"d":"1,600,000.00 Ft"}}]
[null,"Súlyozás",{"$f":"MAX(0, MIN(1,C20/$F$20))","v":{"v":0.1875,"d":"19%"}},{"$f":"MAX(0, MIN(1,D20/$F$20))","v":{"v":0.1875,"d":"19%"}},{"$f":"MAX(0, MIN(1,E20/$F$20))","v":{"v":0.625,"d":"63%"}},{"$f":"SUM(C21:E21)","v":{"v":1,"d":"100%"}}]
[]
["A jobbra lévő cellában kezdődő Egyéb költségek táblázatban adhatja meg az adatokat. A következő utasítás az A31 cellában található.","Egyéb költségek:","Szegmensnév 1","Szegmensnév 2","Szegmensnév 3","Összesen"]
[null,"Ügyfélfelvásárlás",{"v":105000,"d":"105,000.00 Ft"},{"v":120000,"d":"120,000.00 Ft"},{"v":235000,"d":"235,000.00 Ft"},{"$f":"SUM(EgyébKöltségek[[#This Row],[Szegmensnév 1]:[Szegmensnév 3]])","v":{"v":460000,"d":"460,000.00 Ft"}}]
[null,"Ügyfélmarketing",{"v":150000,"d":"150,000.00 Ft"},{"v":125000,"d":"125,000.00 Ft"},{"v":275000,"d":"275,000.00 Ft"},{"$f":"SUM(C25:E25)","v":{"v":550000,"d":"550,000.00 Ft"}}]
[null,"Ügyfélmegszűnés",{"v":80000,"d":"80,000.00 Ft"},{"v":190000,"d":"190,000.00 Ft"},{"v":140000,"d":"140,000.00 Ft"},{"$f":"SUM(C26:E26)","v":{"v":410000,"d":"410,000.00 Ft"}}]
[null,"Egyéb ügyfélköltségek összesen",{"$f":"SUM(C24:C26)","v":{"v":335000,"d":"335,000.00 Ft"}},{"$f":"SUM(D24:D26)","v":{"v":435000,"d":"435,000.00 Ft"}},{"$f":"SUM(E24:E26)","v":{"v":650000,"d":"650,000.00 Ft"}},{"$f":"SUM(F24:F26)","v":{"v":1420000,"d":"1,420,000.00 Ft"}}]
[null,"Ügyfélnyereség szegmensenként",{"$f":"+C20-C27","v":{"v":-35000,"d":"-35,000.00 Ft"}},{"$f":"+D20-D27","v":{"v":-135000,"d":"-135,000.00 Ft"}},{"$f":"+E20-E27","v":{"v":350000,"d":"350,000.00 Ft"}},{"$f":"SUM(C28:E28)","v":{"v":180000,"d":"180,000.00 Ft"}}]
[null,"Súlyozás",{"$f":"MAX(0,MIN(1, C28/$F$28))","v":{"v":0,"d":"0%"}},{"$f":"MAX(0,MIN(1, D28/$F$28))","v":{"v":0,"d":"0%"}},{"$f":"MAX(0,MIN(1, E28/$F$28))","v":{"v":1,"d":"100%"}},{"$f":"SUM(C29:E29)","v":{"v":1,"d":"100%"}}]
[]
["A jobbra lévő cellában kezdődő Összegző metrikák táblázat automatikusan frissül. A következő utasítás az A37 cellában található.","Összegző metrikák:","Szegmensnév 1","Szegmensnév 2","Szegmensnév 3","Trend"]
[null,"Átlagos költség felvásárolt ügyfelenként",{"$f":"+C24/C8","v":{"v":52500,"d":"52,500.00 Ft"}},{"$f":"+D24/D8","v":{"v":30000,"d":"30,000.00 Ft"}},{"$f":"+E24/E8","v":{"v":58750,"d":"58,750.00 Ft"}}]
[null,"Átlagos költség megszűnt ügyfelenként",{"$f":"-C26/C9","v":{"v":80000,"d":"80,000.00 Ft"}},{"$f":"-D26/D9","v":{"v":95000,"d":"95,000.00 Ft"}},{"$f":"-E26/E9","v":{"v":70000,"d":"70,000.00 Ft"}}]
[null,"Átlagos marketingköltség aktív ügyfelenként",{"$f":"+C26/Ügyféltevékenységek[[#Totals],[Szegmensnév 1]]","v":{"v":13333.333333333334,"d":"13,333.33 Ft"}},{"$f":"+D25/Ügyféltevékenységek[[#Totals],[Szegmensnév 2]]","v":{"v":12500,"d":"12,500.00 Ft"}},{"$f":"+E25/Ügyféltevékenységek[[#Totals],[Szegmensnév 3]]","v":{"v":27500,"d":"27,500.00 Ft"}}]
[null,"Átlagos nyereség (veszteség) ügyfelenként",{"$f":"+C29/Ügyféltevékenységek[[#Totals],[Szegmensnév 1]]","v":{"v":0,"d":"0.00 Ft"}},{"$f":"+D28/Ügyféltevékenységek[[#Totals],[Szegmensnév 2]]","v":{"v":-13500,"d":"-13,500.00 Ft"}},{"$f":"+E28/Ügyféltevékenységek[[#Totals],[Szegmensnév 3]]","v":{"v":35000,"d":"35,000.00 Ft"}}]
[]
["A jobbra lévő cellában az összegző metrikák ügyfélszegmensenként megjelenítő csoportosított oszlop diagram található.","Ebben a cellában az összegző metrikákat ügyfélszegmensenként megjelenítő csoportosított oszlop diagram található."]